[Event "*** Titled Tuesday Blitz"]
[Site "Chess.com"]
[Date "2021.03.30"]
[Round "3"]
[White "kuba2006"]
[Black "davidkalashian"]
[Result "0-1"]
[WhiteElo "2350"]
[BlackElo "2546"]
[TimeControl "180+1"]
[EndTime "10:25:25 PDT"]
[Termination "davidkalashian won by resignation"]

1. b3 {[%clk 0:03:00.9]} 1... Nf6 {[%clk 0:02:58.7]} 2. Bb2 {[%clk 0:03:01.4]}
2... g6 {[%clk 0:02:59.6]} 3. e4 {[%clk 0:03:01.6]} 3... d6 {[%clk 0:02:56.8]}
4. e5 {[%clk 0:03:02.5]} 4... dxe5 {[%clk 0:02:56.6]} 5. Bxe5 {[%clk 0:03:03.4]}
5... Bg7 {[%clk 0:02:56.4]} 6. Nf3 {[%clk 0:03:02.9]} 6... O-O {[%clk
0:02:55.8]} 7. Bc4 {[%clk 0:03:02.8]} 7... Nc6 {[%clk 0:02:51.9]} 8. Bb2 {[%clk
0:02:59.5]} 8... e5 {[%clk 0:02:45.5]} 9. O-O {[%clk 0:02:57.2]} 9... e4 {[%clk
0:02:30.4]} 10. Ne5 {[%clk 0:02:33.7]} 10... Nxe5 {[%clk 0:02:26.8]} 11. Bxe5
{[%clk 0:02:34.6]} 11... Re8 {[%clk 0:02:15.8]} 12. Bb2 {[%clk 0:02:31.1]} 12...
Qd6 {[%clk 0:02:13.4]} 13. d3 {[%clk 0:02:22.7]} 13... Ng4 {[%clk 0:02:09]} 14.
f4 {[%clk 0:01:06.7]} 14... Bxb2 {[%clk 0:01:48.3]} 15. Nd2 {[%clk 0:01:05.9]}
15... Qd4+ {[%clk 0:01:40.8]} 16. Kh1 {[%clk 0:01:02.1]} 16... Bxa1 {[%clk
0:01:41.7]} 17. Nxe4 {[%clk 0:00:55.4]} 17... Rxe4 {[%clk 0:01:38]} 0-1

[Event "*** Titled Tuesday Blitz"]
[Site "Chess.com"]
[Date "2021.03.30"]
[Round "3"]
[White "KroshkaKami"]
[Black "Terao90"]
[Result "0-1"]
[WhiteElo "2352"]
[BlackElo "2549"]
[TimeControl "180+1"]
[EndTime "10:25:31 PDT"]
[Termination "Terao90 won by resignation"]

1. e4 {[%clk 0:03:00.9]} 1... c5 {[%clk 0:02:59.5]} 2. Nf3 {[%clk 0:02:57.1]}
2... Nc6 {[%clk 0:02:59.1]} 3. Bb5 {[%clk 0:02:56.3]} 3... e6 {[%clk 0:02:59]}
4. c3 {[%clk 0:02:53.2]} 4... Nge7 {[%clk 0:02:57.6]} 5. O-O {[%clk 0:02:52.5]}
5... d5 {[%clk 0:02:51.9]} 6. exd5 {[%clk 0:02:27.5]} 6... Qxd5 {[%clk
0:02:52.8]} 7. d4 {[%clk 0:02:24.9]} 7... cxd4 {[%clk 0:02:51.5]} 8. Nxd4 {[%clk
0:02:21]} 8... Bd7 {[%clk 0:02:49.4]} 9. Be2 {[%clk 0:02:04.2]} 9... Nxd4 {[%clk
0:02:43.8]} 10. cxd4 {[%clk 0:02:05.1]} 10... Bc6 {[%clk 0:02:44.3]} 11. Bf3
{[%clk 0:02:03.4]} 11... Qd7 {[%clk 0:02:43.9]} 12. Be3 {[%clk 0:02:02.3]} 12...
Nd5 {[%clk 0:02:42]} 13. Nc3 {[%clk 0:02:01]} 13... Be7 {[%clk 0:02:37.6]} 14.
Qe2 {[%clk 0:01:59.9]} 14... O-O {[%clk 0:02:37]} 15. Rac1 {[%clk 0:01:59.9]}
15... Rac8 {[%clk 0:02:36.2]} 16. Rfd1 {[%clk 0:01:58.7]} 16... Rfd8 {[%clk
0:02:36]} 17. Ne4 {[%clk 0:01:58.7]} 17... b6 {[%clk 0:02:35.6]} 18. g3 {[%clk
0:01:52.6]} 18... Bb5 {[%clk 0:02:35.6]} 19. Qe1 {[%clk 0:01:47.2]} 19... Nf6
{[%clk 0:02:19.2]} 20. Nc3 {[%clk 0:01:44.6]} 20... Bc6 {[%clk 0:02:18.7]} 21.
Qe2 {[%clk 0:01:42]} 21... Bb4 {[%clk 0:02:11.7]} 22. Bg5 {[%clk 0:01:26.4]}
22... Be7 {[%clk 0:02:04]} 23. h4 {[%clk 0:01:20.3]} 23... h6 {[%clk 0:02:03.4]}
24. Bf4 {[%clk 0:01:18]} 24... Nd5 {[%clk 0:02:01]} 25. Be5 {[%clk 0:01:17.2]}
25... Bf8 {[%clk 0:01:57.2]} 26. h5 {[%clk 0:01:14.1]} 26... Qb7 {[%clk
0:01:54.4]} 27. Be4 {[%clk 0:01:08.5]} 27... Nxc3 {[%clk 0:01:52.2]} 0-1

[Event "*** Titled Tuesday Blitz"]
[Site "Chess.com"]
[Date "2021.03.30"]
[Round "3"]
[White "bazar-wokzal"]
[Black "Cocaino74"]
[Result "1-0"]
[WhiteElo "2573"]
[BlackElo "2256"]
[TimeControl "180+1"]
[EndTime "10:25:32 PDT"]
[Termination "bazar-wokzal won by checkmate"]

1. e4 {[%clk 0:02:17.1]} 1... c5 {[%clk 0:02:59.2]} 2. c3 {[%clk 0:02:16.7]}
2... Nf6 {[%clk 0:02:58.8]} 3. e5 {[%clk 0:02:15.4]} 3... Nd5 {[%clk 0:02:59.4]}
4. d4 {[%clk 0:02:14.8]} 4... cxd4 {[%clk 0:03:00.3]} 5. cxd4 {[%clk 0:02:14.4]}
5... d6 {[%clk 0:03:00.7]} 6. Bc4 {[%clk 0:02:13.4]} 6... Nb6 {[%clk 0:03:01.2]}
7. Bb3 {[%clk 0:02:13.3]} 7... dxe5 {[%clk 0:02:59]} 8. Qh5 {[%clk 0:02:13.2]}
8... e6 {[%clk 0:02:50.1]} 9. dxe5 {[%clk 0:02:13.3]} 9... Bb4+ {[%clk
0:02:36.3]} 10. Nc3 {[%clk 0:02:12.6]} 10... g6 {[%clk 0:02:20.7]} 11. Qg5
{[%clk 0:02:11.6]} 11... Nc6 {[%clk 0:02:14.3]} 12. Qxd8+ {[%clk 0:02:08]} 12...
Nxd8 {[%clk 0:02:13]} 13. Nf3 {[%clk 0:02:08.6]} 13... Bd7 {[%clk 0:02:08.5]}
14. Bg5 {[%clk 0:02:08.3]} 14... h6 {[%clk 0:02:01.6]} 15. Bf6 {[%clk
0:02:07.9]} 15... O-O {[%clk 0:02:01.2]} 16. Nd4 {[%clk 0:02:05.6]} 16... Nc6
{[%clk 0:01:59.2]} 17. O-O-O {[%clk 0:02:02.3]} 17... Rac8 {[%clk 0:01:46.9]}
18. Kb1 {[%clk 0:01:58.6]} 18... Nxd4 {[%clk 0:01:44]} 19. Rxd4 {[%clk
0:01:59.5]} 19... Bxc3 {[%clk 0:01:43.9]} 20. bxc3 {[%clk 0:02:00.2]} 20... Rxc3
{[%clk 0:01:44.4]} 21. Rh4 {[%clk 0:02:00.2]} 21... Kh7 {[%clk 0:01:35.8]} 22.
Rd1 {[%clk 0:01:52.8]} 22... Bc6 {[%clk 0:01:02.8]} 23. Rdd4 {[%clk 0:01:51.4]}
23... Nd7 {[%clk 0:00:56.5]} 24. Rxh6+ {[%clk 0:01:50.5]} 24... Kxh6 {[%clk
0:00:55.2]} 25. Rh4# {[%clk 0:01:50.1]} 1-0

[Event "*** Titled Tuesday Blitz"]
[Site "Chess.com"]
[Date "2021.03.30"]
[Round "3"]
[White "kidagent"]
[Black "dcremisi"]
[Result "0-1"]
[WhiteElo "2314"]
[BlackElo "2532"]
[TimeControl "180+1"]
[EndTime "10:25:37 PDT"]
[Termination "dcremisi won by resignation"]

1. e4 {[%clk 0:03:00.9]} 1... e6 {[%clk 0:03:00.1]} 2. d4 {[%clk 0:03:00.6]}
2... d5 {[%clk 0:03:00.4]} 3. Nd2 {[%clk 0:03:01.3]} 3... a6 {[%clk 0:03:00.5]}
4. e5 {[%clk 0:02:52.6]} 4... Bd7 {[%clk 0:02:59.4]} 5. f4 {[%clk 0:02:44.6]}
5... Bb5 {[%clk 0:02:58.8]} 6. Bxb5+ {[%clk 0:02:43.6]} 6... axb5 {[%clk
0:02:58.8]} 7. Ngf3 {[%clk 0:02:43.8]} 7... Ne7 {[%clk 0:02:59.1]} 8. O-O {[%clk
0:02:42.3]} 8... Nf5 {[%clk 0:02:59.4]} 9. Nb3 {[%clk 0:02:38.9]} 9... Nd7
{[%clk 0:02:56.2]} 10. c3 {[%clk 0:02:36.8]} 10... c5 {[%clk 0:02:54]} 11. a3
{[%clk 0:02:33.4]} 11... c4 {[%clk 0:02:52.6]} 12. Nbd2 {[%clk 0:02:29.6]} 12...
Ne3 {[%clk 0:02:52.9]} 13. Qe2 {[%clk 0:02:28.9]} 13... Nxf1 {[%clk 0:02:53.3]}
14. Nxf1 {[%clk 0:02:29.8]} 14... g6 {[%clk 0:02:52.3]} 15. f5 {[%clk
0:02:24.9]} 15... gxf5 {[%clk 0:02:50.6]} 16. Bf4 {[%clk 0:02:19.2]} 16... Rg8
{[%clk 0:02:35.1]} 17. Ng3 {[%clk 0:02:10.4]} 17... b4 {[%clk 0:02:32.9]} 18.
cxb4 {[%clk 0:01:38.1]} 18... Bxb4 {[%clk 0:02:31.5]} 19. Rf1 {[%clk 0:01:33.5]}
19... Be7 {[%clk 0:02:27.7]} 20. Ne1 {[%clk 0:01:20.4]} 20... Qb6 {[%clk
0:02:26.7]} 21. Be3 {[%clk 0:01:17]} 21... Bg5 {[%clk 0:02:11.4]} 22. Rf2 {[%clk
0:01:10.1]} 22... c3 {[%clk 0:01:57.9]} 23. bxc3 {[%clk 0:01:05.7]} 23... Rxa3
{[%clk 0:01:57]} 24. Bxg5 {[%clk 0:00:54.6]} 24... Rxg5 {[%clk 0:01:56.9]} 25.
Rf3 {[%clk 0:00:54.7]} 25... Qb1 {[%clk 0:01:45.9]} 26. Kf2 {[%clk 0:00:50.2]}
26... Ra2 {[%clk 0:01:45.6]} 0-1

[Event "*** Titled Tuesday Blitz"]
[Site "Chess.com"]
[Date "2021.03.30"]
[Round "3"]
[White "deribas12345"]
[Black "SHIVACalypso"]
[Result "1-0"]
[WhiteElo "2593"]
[BlackElo "2397"]
[TimeControl "180+1"]
[EndTime "10:25:44 PDT"]
[Termination "deribas12345 won by resignation"]

1. d4 {[%clk 0:03:00.9]} 1... e6 {[%clk 0:02:59.7]} 2. c4 {[%clk 0:03:00.6]}
2... Nf6 {[%clk 0:02:59]} 3. Nc3 {[%clk 0:03:00.7]} 3... Bb4 {[%clk 0:02:58.3]}
4. f3 {[%clk 0:02:59.1]} 4... c5 {[%clk 0:02:57.2]} 5. a3 {[%clk 0:02:54.9]}
5... Bxc3+ {[%clk 0:02:51.3]} 6. bxc3 {[%clk 0:02:55.8]} 6... d6 {[%clk
0:02:51.3]} 7. e4 {[%clk 0:02:51.5]} 7... Nc6 {[%clk 0:02:48]} 8. Be3 {[%clk
0:02:50.5]} 8... cxd4 {[%clk 0:02:31.8]} 9. cxd4 {[%clk 0:02:50.1]} 9... Qa5+
{[%clk 0:02:31.2]} 10. Qd2 {[%clk 0:02:47.9]} 10... Qxd2+ {[%clk 0:02:30.6]} 11.
Kxd2 {[%clk 0:02:48.8]} 11... Bd7 {[%clk 0:02:27.8]} 12. Nh3 {[%clk 0:02:41.5]}
12... Ke7 {[%clk 0:02:27.1]} 13. Bd3 {[%clk 0:02:39.3]} 13... Rac8 {[%clk
0:02:21.1]} 14. Rab1 {[%clk 0:02:36.7]} 14... Na5 {[%clk 0:02:20.3]} 15. Rhc1
{[%clk 0:02:35.6]} 15... b6 {[%clk 0:02:10.1]} 16. e5 {[%clk 0:02:34.5]} 16...
Ne8 {[%clk 0:02:00.9]} 17. c5 {[%clk 0:02:26.5]} 17... dxc5 {[%clk 0:01:54.8]}
18. dxc5 {[%clk 0:02:23.8]} 18... Ba4 {[%clk 0:01:33.1]} 19. cxb6 {[%clk
0:02:16.9]} 19... Rxc1 {[%clk 0:00:47.5]} 20. Kxc1 {[%clk 0:02:15.5]} 20... a6
{[%clk 0:00:41]} 21. b7 {[%clk 0:01:46.1]} 1-0

[Event "*** Titled Tuesday Blitz"]
[Site "Chess.com"]
[Date "2021.03.30"]
[Round "3"]
[White "BahadirOzen"]
[Black "Mr_Sinigami"]
[Result "1-0"]
[WhiteElo "2774"]
[BlackElo "2533"]
[TimeControl "180+1"]
[EndTime "10:25:46 PDT"]
[Termination "BahadirOzen won on time"]

1. g3 {[%clk 0:03:00.9]} 1... d5 {[%clk 0:02:58.9]} 2. Nf3 {[%clk 0:03:01.3]}
2... Nf6 {[%clk 0:02:58.1]} 3. Bg2 {[%clk 0:03:01.6]} 3... Bf5 {[%clk
0:02:58.3]} 4. c4 {[%clk 0:02:59.5]} 4... e6 {[%clk 0:02:57.3]} 5. O-O {[%clk
0:02:58.9]} 5... c6 {[%clk 0:02:56.3]} 6. cxd5 {[%clk 0:02:54]} 6... exd5 {[%clk
0:02:56]} 7. d3 {[%clk 0:02:54.1]} 7... Be7 {[%clk 0:02:55.5]} 8. Qb3 {[%clk
0:02:52.2]} 8... Qb6 {[%clk 0:02:52.4]} 9. Qc2 {[%clk 0:02:52.4]} 9... O-O
{[%clk 0:02:49.6]} 10. Nc3 {[%clk 0:02:52]} 10... h6 {[%clk 0:02:46.5]} 11. e4
{[%clk 0:02:47.5]} 11... Bh7 {[%clk 0:02:00.3]} 12. Be3 {[%clk 0:02:44]} 12...
Qa6 {[%clk 0:01:26.9]} 13. Rfe1 {[%clk 0:02:34.8]} 13... Nbd7 {[%clk 0:01:16.6]}
14. exd5 {[%clk 0:02:26.9]} 14... cxd5 {[%clk 0:01:12.6]} 15. Bxh6 {[%clk
0:02:14.1]} 15... Bd6 {[%clk 0:00:02.5]} 16. Be3 {[%clk 0:02:08.1]} 1-0

[Event "*** Titled Tuesday Blitz"]
[Site "Chess.com"]
[Date "2021.03.30"]
[Round "3"]
[White "DanielNaroditsky"]
[Black "abykhovsky"]
[Result "1-0"]
[WhiteElo "3036"]
[BlackElo "2717"]
[TimeControl "180+1"]
[EndTime "10:25:47 PDT"]
[Termination "DanielNaroditsky won by resignation"]

1. d4 {[%clk 0:02:59.5]} 1... Nf6 {[%clk 0:03:00.4]} 2. Nc3 {[%clk 0:02:58.9]}
2... g6 {[%clk 0:03:01.3]} 3. e4 {[%clk 0:02:58.9]} 3... d6 {[%clk 0:03:01.2]}
4. f4 {[%clk 0:02:57.4]} 4... Bg7 {[%clk 0:03:01.4]} 5. Bd3 {[%clk 0:02:57.8]}
5... O-O {[%clk 0:03:01.1]} 6. Nf3 {[%clk 0:02:58.6]} 6... Nc6 {[%clk
0:03:01.7]} 7. e5 {[%clk 0:02:57.6]} 7... dxe5 {[%clk 0:02:55.8]} 8. fxe5 {[%clk
0:02:58.5]} 8... Nd5 {[%clk 0:02:56]} 9. Nxd5 {[%clk 0:02:59.2]} 9... Qxd5
{[%clk 0:02:56]} 10. c3 {[%clk 0:02:59.3]} 10... f6 {[%clk 0:02:51.6]} 11. exf6
{[%clk 0:02:56.3]} 11... exf6 {[%clk 0:02:52.5]} 12. O-O {[%clk 0:02:56.3]}
12... Be6 {[%clk 0:02:50.2]} 13. Bf4 {[%clk 0:02:55.1]} 13... Qd7 {[%clk
0:02:49.5]} 14. Nd2 {[%clk 0:02:53.7]} 14... Ne7 {[%clk 0:02:47.2]} 15. Re1
{[%clk 0:02:49.8]} 15... Nd5 {[%clk 0:02:46.1]} 16. Bg3 {[%clk 0:02:50.5]} 16...
Rfe8 {[%clk 0:02:43.9]} 17. Ne4 {[%clk 0:02:48.7]} 17... b6 {[%clk 0:02:43.6]}
18. Qf3 {[%clk 0:02:49.3]} 18... h6 {[%clk 0:02:34.4]} 19. Nf2 {[%clk 0:02:44]}
19... Bf7 {[%clk 0:02:32]} 20. Ng4 {[%clk 0:02:35.2]} 20... h5 {[%clk
0:02:29.6]} 21. Nf2 {[%clk 0:02:34]} 21... Rxe1+ {[%clk 0:02:26.2]} 22. Rxe1
{[%clk 0:02:33.9]} 22... Re8 {[%clk 0:02:27.1]} 23. Rxe8+ {[%clk 0:02:33.2]}
23... Qxe8 {[%clk 0:02:28]} 24. Ne4 {[%clk 0:02:30.4]} 24... Qe7 {[%clk
0:02:24.8]} 25. h4 {[%clk 0:02:25.4]} 25... Kh8 {[%clk 0:02:09.8]} 26. a3 {[%clk
0:02:24.7]} 26... f5 {[%clk 0:02:06.4]} 27. Ng5 {[%clk 0:02:21.6]} 27... Bg8
{[%clk 0:02:06.8]} 28. Bxf5 {[%clk 0:02:18.3]} 28... Qe8 {[%clk 0:01:52.2]} 29.
Be4 {[%clk 0:02:16.3]} 29... Nf6 {[%clk 0:01:49.9]} 30. Bxc7 {[%clk 0:02:03.9]}
30... Ng4 {[%clk 0:01:45.7]} 31. Qf4 {[%clk 0:01:49.5]} 31... Bf6 {[%clk
0:01:41.7]} 32. Nf3 {[%clk 0:01:41.7]} 32... Qb5 {[%clk 0:01:20.7]} 33. Be5
{[%clk 0:01:37.6]} 33... Bxe5 {[%clk 0:01:18.5]} 34. Nxe5 {[%clk 0:01:38.5]} 1-0

[Event "*** Titled Tuesday Blitz"]
[Site "Chess.com"]
[Date "2021.03.30"]
[Round "3"]
[White "SmallTurtleDuck"]
[Black "Stormeman100100"]
[Result "1-0"]
[WhiteElo "2333"]
[BlackElo "2515"]
[TimeControl "180+1"]
[EndTime "10:25:49 PDT"]
[Termination "SmallTurtleDuck won by resignation"]

1. d4 {[%clk 0:03:00.9]} 1... Nf6 {[%clk 0:02:59.8]} 2. Nd2 {[%clk 0:03:00.7]}
2... d5 {[%clk 0:02:59.4]} 3. Ngf3 {[%clk 0:03:00]} 3... c5 {[%clk 0:02:59.7]}
4. e3 {[%clk 0:02:59.8]} 4... Nc6 {[%clk 0:02:59.5]} 5. c4 {[%clk 0:02:57.7]}
5... cxd4 {[%clk 0:02:59.1]} 6. exd4 {[%clk 0:02:58.6]} 6... Bg4 {[%clk
0:02:59.2]} 7. Qb3 {[%clk 0:02:46.4]} 7... e6 {[%clk 0:02:34.9]} 8. cxd5 {[%clk
0:02:36]} 8... Nxd5 {[%clk 0:02:26.7]} 9. Bc4 {[%clk 0:02:34.2]} 9... Nb6 {[%clk
0:02:20.9]} 10. Bb5 {[%clk 0:02:30.5]} 10... Be7 {[%clk 0:02:20.9]} 11. Ne5
{[%clk 0:02:25.9]} 11... O-O {[%clk 0:01:33.5]} 12. Bxc6 {[%clk 0:02:20.1]}
12... Qxd4 {[%clk 0:01:32.6]} 13. Nxg4 {[%clk 0:02:16.1]} 13... bxc6 {[%clk
0:01:32.5]} 14. Ne3 {[%clk 0:02:13]} 14... Nd5 {[%clk 0:01:30.5]} 15. Nxd5
{[%clk 0:02:08.1]} 15... cxd5 {[%clk 0:01:30.6]} 16. Nf3 {[%clk 0:02:05.9]}
16... Qe4+ {[%clk 0:01:30.4]} 17. Qe3 {[%clk 0:02:03.9]} 17... Qc4 {[%clk
0:01:26.9]} 18. Qe2 {[%clk 0:01:59.6]} 18... Qc6 {[%clk 0:01:17]} 19. O-O {[%clk
0:01:58.1]} 19... Rfc8 {[%clk 0:01:16.9]} 20. Bf4 {[%clk 0:01:52.9]} 20... Bf6
{[%clk 0:01:15.1]} 21. Be5 {[%clk 0:01:51.3]} 21... Be7 {[%clk 0:01:15.3]} 22.
Bc3 {[%clk 0:01:49.7]} 22... Qa4 {[%clk 0:01:15.2]} 23. Rfd1 {[%clk 0:01:31.4]}
23... Bf8 {[%clk 0:01:15.2]} 24. a3 {[%clk 0:01:27.5]} 24... Rab8 {[%clk
0:01:14.4]} 25. Rd4 {[%clk 0:01:25.8]} 25... Qc6 {[%clk 0:01:14.5]} 26. Rg4
{[%clk 0:01:23.4]} 26... f6 {[%clk 0:01:12.5]} 27. Bxf6 {[%clk 0:01:16.8]} 27...
Kf7 {[%clk 0:01:11.2]} 28. Ne5+ {[%clk 0:01:16.3]} 1-0

[Event "*** Titled Tuesday Blitz"]
[Site "Chess.com"]
[Date "2021.03.30"]
[Round "3"]
[White "Vaathi_Coming"]
[Black "TeukkaSalama"]
[Result "1-0"]
[WhiteElo "2800"]
[BlackElo "2354"]
[TimeControl "180+1"]
[EndTime "10:26:05 PDT"]
[Termination "Vaathi_Coming won on time"]

1. Nf3 {[%clk 0:03:00.5]} 1... d5 {[%clk 0:02:59.2]} 2. d4 {[%clk 0:02:59.9]}
2... Nf6 {[%clk 0:02:55.9]} 3. Bf4 {[%clk 0:03:00.1]} 3... c5 {[%clk 0:02:54.9]}
4. e3 {[%clk 0:03:00.3]} 4... e6 {[%clk 0:02:55.4]} 5. c3 {[%clk 0:02:59]} 5...
Bd6 {[%clk 0:02:55.9]} 6. Bg3 {[%clk 0:02:57.9]} 6... O-O {[%clk 0:02:53.9]} 7.
Nbd2 {[%clk 0:02:57.5]} 7... b6 {[%clk 0:00:27.6]} 8. Bd3 {[%clk 0:02:55.1]}
8... Ba6 {[%clk 0:00:25.7]} 9. Bxa6 {[%clk 0:02:46.6]} 9... Nxa6 {[%clk
0:00:26.6]} 10. Qe2 {[%clk 0:02:47.1]} 10... Nb8 {[%clk 0:00:23.2]} 11. e4
{[%clk 0:02:46.9]} 11... dxe4 {[%clk 0:00:22.5]} 12. Nxe4 {[%clk 0:02:47.8]}
12... Nxe4 {[%clk 0:00:23.1]} 13. Qxe4 {[%clk 0:02:47.9]} 13... Na6 {[%clk
0:00:20.8]} 14. O-O-O {[%clk 0:02:44.7]} 14... Qe7 {[%clk 0:00:19.3]} 15. Bxd6
{[%clk 0:02:39.2]} 15... Qxd6 {[%clk 0:00:19]} 16. Ng5 {[%clk 0:02:39.5]} 16...
g6 {[%clk 0:00:16.3]} 17. h4 {[%clk 0:02:39.4]} 17... Rad8 {[%clk 0:00:13.9]}
18. h5 {[%clk 0:02:30.9]} 18... cxd4 {[%clk 0:00:14.1]} 19. hxg6 {[%clk
0:02:27.8]} 19... fxg6 {[%clk 0:00:05.8]} 20. Rxh7 {[%clk 0:02:17.7]} 20... Qf4+
{[%clk 0:00:05.8]} 21. Qxf4 {[%clk 0:02:17.5]} 21... Rxf4 {[%clk 0:00:06.7]} 22.
Rdh1 {[%clk 0:02:17.6]} 22... d3 {[%clk 0:00:03.7]} 23. Nxe6 {[%clk 0:02:09.4]}
23... d2+ {[%clk 0:00:02.7]} 24. Kd1 {[%clk 0:02:09.4]} 1-0

[Event "*** Titled Tuesday Blitz"]
[Site "Chess.com"]
[Date "2021.03.30"]
[Round "3"]
[White "Sofiia_Hryzlova"]
[Black "MasterKroket"]
[Result "1-0"]
[WhiteElo "2323"]
[BlackElo "2513"]
[TimeControl "180+1"]
[EndTime "10:26:07 PDT"]
[Termination "Sofiia_Hryzlova won by resignation"]

1. c4 {[%clk 0:02:57.7]} 1... e6 {[%clk 0:02:59.7]} 2. Nc3 {[%clk 0:02:48.4]}
2... Nf6 {[%clk 0:02:59.5]} 3. e4 {[%clk 0:02:47]} 3... d5 {[%clk 0:02:58.3]} 4.
cxd5 {[%clk 0:02:47]} 4... exd5 {[%clk 0:02:58.4]} 5. e5 {[%clk 0:02:47.9]} 5...
d4 {[%clk 0:02:58.9]} 6. exf6 {[%clk 0:02:45.9]} 6... dxc3 {[%clk 0:02:58.6]} 7.
dxc3 {[%clk 0:02:41.5]} 7... Qxf6 {[%clk 0:02:51.5]} 8. Nf3 {[%clk 0:02:30.2]}
8... Bc5 {[%clk 0:02:49.1]} 9. Qe2+ {[%clk 0:02:26.7]} 9... Qe6 {[%clk
0:02:45.5]} 10. Qxe6+ {[%clk 0:02:16.5]} 10... Bxe6 {[%clk 0:02:46.4]} 11. Bf4
{[%clk 0:02:12.9]} 11... Bb6 {[%clk 0:02:38.1]} 12. Ng5 {[%clk 0:02:07.3]} 12...
Bd5 {[%clk 0:02:31.6]} 13. O-O-O {[%clk 0:02:02.2]} 13... Bxa2 {[%clk
0:02:24.3]} 14. Bb5+ {[%clk 0:01:48.4]} 14... c6 {[%clk 0:02:13.2]} 15. Rhe1+
{[%clk 0:01:47.5]} 15... Be6 {[%clk 0:01:54.2]} 16. Nxe6 {[%clk 0:01:45.8]}
16... fxe6 {[%clk 0:01:55.1]} 17. Rxe6+ {[%clk 0:01:31.9]} 17... Kf8 {[%clk
0:01:38.2]} 18. Bc4 {[%clk 0:01:20.7]} 18... Na6 {[%clk 0:01:15.2]} 19. Rd7
{[%clk 0:01:01.1]} 19... Bc5 {[%clk 0:01:07.5]} 20. Rxb7 {[%clk 0:00:54.1]} 1-0

[Event "*** Titled Tuesday Blitz"]
[Site "Chess.com"]
[Date "2021.03.30"]
[Round "3"]
[White "Federtiu"]
[Black "Zhigalko_Sergei"]
[Result "0-1"]
[WhiteElo "2636"]
[BlackElo "2890"]
[TimeControl "180+1"]
[EndTime "10:26:08 PDT"]
[Termination "Zhigalko_Sergei won by resignation"]

1. e4 {[%clk 0:03:00.9]} 1... c5 {[%clk 0:02:56.6]} 2. Nc3 {[%clk 0:03:00.8]}
2... Nc6 {[%clk 0:02:56.1]} 3. Bb5 {[%clk 0:03:00.8]} 3... Nd4 {[%clk
0:02:54.6]} 4. Bc4 {[%clk 0:03:00.9]} 4... e6 {[%clk 0:02:54.7]} 5. Nge2 {[%clk
0:03:00.4]} 5... Nf6 {[%clk 0:02:51.2]} 6. O-O {[%clk 0:02:58.3]} 6... a6 {[%clk
0:02:51]} 7. a4 {[%clk 0:02:57.9]} 7... Qc7 {[%clk 0:02:46]} 8. d3 {[%clk
0:02:51.5]} 8... Be7 {[%clk 0:02:42.7]} 9. Nxd4 {[%clk 0:02:40.5]} 9... cxd4
{[%clk 0:02:43]} 10. Ne2 {[%clk 0:02:41.4]} 10... Nxe4 {[%clk 0:02:43.4]} 11.
Nxd4 {[%clk 0:02:39.9]} 11... Nf6 {[%clk 0:02:38.7]} 12. Bb3 {[%clk 0:02:17.7]}
12... b6 {[%clk 0:02:30.3]} 13. Qe2 {[%clk 0:02:02.9]} 13... Bb7 {[%clk
0:02:27.4]} 14. Kh1 {[%clk 0:02:02]} 14... O-O {[%clk 0:01:55.1]} 15. Bg5 {[%clk
0:01:51.4]} 15... h6 {[%clk 0:01:52.1]} 16. Bd2 {[%clk 0:01:40.7]} 16... Bc5
{[%clk 0:01:40.6]} 17. Nf3 {[%clk 0:01:40.2]} 17... Ng4 {[%clk 0:01:38.5]} 18.
g3 {[%clk 0:01:05.7]} 18... Qc6 {[%clk 0:01:05.1]} 0-1

[Event "*** Titled Tuesday Blitz"]
[Site "Chess.com"]
[Date "2021.03.30"]
[Round "3"]
[White "BeyondMadness"]
[Black "Lenyas66"]
[Result "0-1"]
[WhiteElo "2297"]
[BlackElo "2533"]
[TimeControl "180+1"]
[EndTime "10:26:08 PDT"]
[Termination "Lenyas66 won by resignation"]

1. d4 {[%clk 0:03:00.9]} 1... e6 {[%clk 0:02:59.6]} 2. e4 {[%clk 0:03:00.3]}
2... d5 {[%clk 0:02:58.9]} 3. e5 {[%clk 0:03:00.4]} 3... c5 {[%clk 0:02:58.1]}
4. c3 {[%clk 0:02:59.8]} 4... Nc6 {[%clk 0:02:55.2]} 5. Nf3 {[%clk 0:02:59.9]}
5... Qb6 {[%clk 0:02:54.6]} 6. a3 {[%clk 0:02:59.1]} 6... c4 {[%clk 0:02:53.2]}
7. h4 {[%clk 0:02:57.7]} 7... Bd7 {[%clk 0:02:51.6]} 8. g3 {[%clk 0:02:56.2]}
8... f6 {[%clk 0:02:49.3]} 9. exf6 {[%clk 0:02:48.1]} 9... Nxf6 {[%clk
0:02:48.2]} 10. Bh3 {[%clk 0:02:45.8]} 10... Bd6 {[%clk 0:02:47.5]} 11. O-O
{[%clk 0:02:41.6]} 11... O-O {[%clk 0:02:46.7]} 12. Ng5 {[%clk 0:02:24]} 12...
Rae8 {[%clk 0:02:44.6]} 13. Re1 {[%clk 0:02:22.8]} 13... Nd8 {[%clk 0:02:43.5]}
14. Nd2 {[%clk 0:02:18.2]} 14... h6 {[%clk 0:02:43]} 15. Ngf3 {[%clk 0:02:17]}
15... Nc6 {[%clk 0:02:36.6]} 16. Qc2 {[%clk 0:01:28.2]} 16... e5 {[%clk
0:02:34.7]} 17. Bxd7 {[%clk 0:01:21.3]} 17... Nxd7 {[%clk 0:02:34.5]} 18. Qg6
{[%clk 0:01:07.6]} 18... Nf6 {[%clk 0:02:07.3]} 19. dxe5 {[%clk 0:00:56.3]}
19... Bxe5 {[%clk 0:02:06.4]} 20. Nxe5 {[%clk 0:00:45.3]} 20... Nxe5 {[%clk
0:02:06]} 21. Re3 {[%clk 0:00:30.1]} 21... Nd3 {[%clk 0:01:59.7]} 22. Rxd3
{[%clk 0:00:22.3]} 22... cxd3 {[%clk 0:01:58.9]} 23. Qxd3 {[%clk 0:00:19.6]}
23... Ng4 {[%clk 0:01:54.8]} 24. Qxd5+ {[%clk 0:00:12.2]} 24... Kh8 {[%clk
0:01:54.2]} 0-1